bitfinex/quotes_SOLUSD_20260220
["timestamp","ask_amount","ask_price","bid_price","bid_amount"]
[1771579186661,0.88142745,84.429,84.406,0.91547896]
[1771579187366,11.8444118,84.428,84.406,0.91547896]
[1771579189657,0.88142745,84.427,84.406,0.91547896]
[1771579190060,0.88142745,84.425,84.397,0.91547896]
[1771579190670,0.88142745,84.425,84.401,0.91547896]
[1771579192159,0.88142745,84.425,84.403,0.91547896]
[1771579192363,15.48302901,84.43,84.403,0.91547896]
[1771579192576,0.88142745,84.429,84.403,0.91547896]
[1771579193187,0.88142745,84.429,84.399,0.91547896]
[1771579193374,11.8444118,84.428,84.401,0.91547896]
[1771579193680,11.8444118,84.428,84.403,0.91547896]
[1771579194565,12.72583925,84.428,84.403,0.91547896]
[1771579195481,3.63889679,84.43,84.405,0.91547896]
[1771579195687,0.88142745,84.448,84.421,0.91547896]
[1771579195868,12.72309005,84.448,84.421,0.91547896]
[1771579196186,0.88142745,84.447,84.421,0.91547896]
[1771579196381,0.88142745,84.439,84.406,0.91547896]
[1771579199494,0.88142745,84.445,84.411,0.91547896]
[1771579200284,11.84105409,84.452,84.421,0.91547896]
[1771579200591,3.63889679,84.46,84.421,0.91547896]
[1771579200592,11.84027591,84.458,84.421,0.91547896]
[1771579200787,12.72170336,84.458,84.421,0.91547896]
[1771579200978,0.88142745,84.457,84.421,0.91547896]
[1771579201469,0.88142745,84.455,84.423,0.91547896]
[1771579201670,0.88142745,84.455,84.43,4.55437575]
[1771579201871,0.88142745,84.455,84.431,0.91547896]
[1771579202990,0.88142745,84.455,84.425,0.91547896]
[1771579203671,0.88142745,84.453,84.425,0.91547896]
[1771579206300,30.52443858,84.48,84.431,0.90804847]
[1771579206471,0.93157571,84.469,84.43,3.63889679]
[1771579206676,0.93157571,84.459,84.42,3.63889679]
[1771579206891,3.63889679,84.46,84.42,3.63889679]
[1771579206892,0.93157571,84.449,84.42,3.63889679]
[1771579207089,0.93157571,84.449,84.421,0.88107469]
[1771579209793,0.91329954,84.447,84.421,0.88107469]
[1771579213201,0.91329954,84.445,84.421,0.88107469]
[1771579213698,12.75403825,84.455,84.423,0.88107469]
[1771579213888,0.91329954,84.454,84.423,0.88107469]
[1771579214406,0.42782658,84.454,84.423,0.88107469]
[1771579214786,11.84090559,84.453,84.423,0.88107469]
[1771579215193,11.84090559,84.453,84.424,11.84497299]
[1771579215396,11.84090559,84.453,84.425,0.88107469]
[1771579215582,3.63889679,84.45,84.412,0.88107469]
[1771579216282,0.49683977,84.449,84.412,0.88107469]
[1771579218591,11.84160666,84.448,84.412,0.88107469]
[1771579218790,12.34163652,84.448,84.412,0.88107469]
[1771579219486,0.50002986,84.447,84.412,0.88107469]
[1771579219686,0.50002986,84.447,84.414,0.88107469]
[1771579220279,11.84160666,84.448,84.421,0.88107469]
[1771579220891,12.34369573,84.448,84.421,0.88107469]
[1771579221093,0.50208907,84.447,84.421,0.88107469]
[1771579221397,11.84160666,84.448,84.421,0.88107469]
[1771579221804,12.34312135,84.453,84.423,0.88107469]
[1771579225904,11.84103228,84.453,84.425,0.88107469]
[1771579226099,3.64110942,84.46,84.431,0.88107469]
[1771579226301,0.50702706,84.459,84.431,0.88107469]
[1771579227091,0.50702706,84.459,84.433,0.88107469]
[1771579228183,11.84020459,84.458,84.433,0.88107469]
[1771579228389,0.50895567,84.457,84.433,0.88107469]
[1771579229909,12.35129908,84.456,84.433,0.88107469]
[1771579230494,0.5108141,84.455,84.433,0.88107469]
[1771579231809,0.91329954,84.449,84.42,11.84543279]
[1771579233713,11.84160666,84.448,84.421,0.88107469]
[1771579233898,0.91329954,84.447,84.421,0.88107469]
[1771579235510,0.91329954,84.447,84.415,11.84610598]
[1771579235689,11.84188712,84.446,84.416,0.88107469]
[1771579235884,0.91329954,84.445,84.416,0.88107469]
[1771579237713,0.87999519,84.439,84.416,0.88107469]
[1771579239011,12.72300426,84.438,84.416,0.88107469]
[1771579239211,11.84300907,84.438,84.416,0.88107469]
[1771579239407,0.87999519,84.437,84.416,0.88107469]
[1771579243218,12.72328478,84.436,84.416,0.88107469]
[1771579245118,0.87999519,84.436,84.416,0.88107469]
[1771579245311,15.48384669,84.44,84.416,0.88107469]
[1771579245621,0.87999519,84.439,84.416,0.88107469]
[1771579248525,0.87999519,84.437,84.41,0.41960998]
[1771579250418,11.84328959,84.436,84.403,12.76753007]
[1771579250724,11.84328959,84.436,84.404,0.91960998]
[1771579252505,12.72328478,84.436,84.406,0.91960998]
[1771579252705,0.87999519,84.435,84.406,0.91960998]
[1771579255227,0.87999519,84.435,84.408,0.91960998]
[1771579257405,0.87999519,84.435,84.409,11.84707791]
[1771579257606,0.87999519,84.435,84.411,0.91960998]
[1771579260430,0.87999519,84.435,84.413,0.91960998]
[1771579262636,0.87999519,84.433,84.413,0.91960998]
[1771579263933,0.98641334,84.437,84.413,0.91960998]
[1771579265318,0.98641334,84.435,84.413,0.91960998]
[1771579268323,0.98641334,84.435,84.413,11.8463875]
[1771579268524,0.98641334,84.435,84.414,0.90528995]
[1771579268724,0.92930983,84.439,84.414,0.90528995]
[1771579269619,0.92930983,84.438,84.414,0.90528995]
[1771579271036,11.84314933,84.437,84.414,0.90528995]
[1771579271426,12.77245916,84.437,84.414,0.90528995]
[1771579272125,0.92930983,84.436,84.414,0.90528995]
[1771579273125,3.64110942,84.43,84.411,0.90528995]
[1771579273331,0.92930983,84.429,84.411,0.90528995]
[1771579274146,0.92930983,84.429,84.406,0.90528995]
[1771579275340,11.8444118,84.428,84.406,0.90528995]
[1771579275542,0.92930983,84.419,84.381,11.85100911]
[1771579275840,0.92930983,84.409,84.381,11.85100911]
[1771579276035,0.92930983,84.414,84.381,11.85100911]
[1771579276237,3.64110942,84.43,84.391,0.90528995]
[1771579277626,15.48535752,84.43,84.393,0.90528995]
[1771579277833,11.8442481,84.43,84.401,0.90528995]
[1771579281026,0.92930983,84.436,84.41,3.64110942]
[1771579281226,0.92930983,84.436,84.411,0.90528995]
[1771579281432,0.92930983,84.434,84.411,0.90528995]
[1771579283350,0.92930983,84.434,84.408,11.84714948]
[1771579283942,0.92930983,84.434,84.406,0.90528995]
[1771579283943,11.84371039,84.433,84.406,0.90528995]
[1771579284249,0.92930983,84.429,84.401,0.90528995]
[1771579284549,0.92930983,84.419,84.384,0.90528995]
[1771579285041,0.92930983,84.417,84.386,0.90528995]
[1771579286733,0.92930983,84.409,84.386,0.90528995]
[1771579288144,0.92930983,84.407,84.386,0.90528995]
[1771579288346,0.92930983,84.399,84.38,0.2]
[1771579289545,0.92930983,84.397,84.38,0.2]
[1771579290245,0.92930983,84.397,84.368,11.85269812]
[1771579290445,12.77668322,84.407,84.371,0.90528995]
[1771579290645,0.92930983,84.406,84.371,0.90528995]
[1771579291242,0.92930983,84.399,84.371,0.90528995]
[1771579291837,0.92930983,84.397,84.371,0.90528995]
[1771579293329,0.92930983,84.397,84.372,0.90528995]
[1771579293938,0.92930983,84.389,84.366,0.90528995]
[1771579295152,0.92930983,84.395,84.366,0.90528995]
[1771579295744,0.92930983,84.393,84.366,0.90528995]
[1771579296931,3.64246369,84.39,84.366,0.90528995]
[1771579297132,1.00611573,84.389,84.366,0.90528995]
[1771579297852,1.00611573,84.387,84.366,0.90528995]
[1771579301039,5.36086188,84.417,84.36,15.69634938]
[1771579301040,1.00611573,84.404,84.362,1.03290292]
[1771579301246,1.00611573,84.409,84.371,1.03290292]
[1771579301641,1.00611573,84.406,84.371,1.03290292]
[1771579302151,1.00611573,84.389,84.361,41.48836546]
[1771579302451,1.00611573,84.389,84.361,42.52126838]
[1771579302658,1.00611573,84.389,84.362,1.03290292]
[1771579303963,1.00611573,84.389,84.363,11.85353768]
[1771579304148,1.00611573,84.389,84.364,1.03290292]
[1771579304942,1.00611573,84.389,84.366,1.03290292]
[1771579306448,1.00611573,84.387,84.366,1.03290292]
[1771579307143,11.85030692,84.386,84.366,1.03290292]
[1771579307542,1.00611573,84.385,84.366,1.03290292]
[1771579308565,1.00611573,84.385,84.361,1.03290292]
[1771579310057,1.00611573,84.383,84.36,12.05390841]
[1771579311760,1.00611573,84.383,84.36,13.08681133]
[1771579311954,1.00611573,84.379,84.36,0.2]
[1771579313173,1.00611573,84.379,84.36,1.23290292]
[1771579313672,1.00611573,84.379,84.36,0.2]
[1771579314261,1.00611573,84.377,84.36,0.2]
[1771579314664,1.00611573,84.377,84.36,1.23290292]
[1771579315668,11.85143046,84.378,84.36,1.23290292]
[1771579317157,4.64857942,84.38,84.36,1.23290292]
[1771579317467,1.00611573,84.386,84.361,1.03290292]
[1771579318462,1.00611573,84.384,84.361,1.03290292]
[1771579319475,3.64246369,84.38,84.361,1.03290292]
[1771579319777,1.00611573,84.379,84.361,1.03290292]
[1771579320156,1.00611573,84.379,84.36,0.2]
[1771579321376,1.00611573,84.369,84.35,0.2]
[1771579321880,11.85244223,84.371,84.35,1.23290292]
[1771579322984,1.00611573,84.371,84.35,1.23290292]
[1771579323180,1.00611573,84.369,84.35,0.2]
[1771579323359,1.00611573,84.359,84.35,0.2]
[1771579323566,1.00611573,84.364,84.35,0.2]
[1771579325688,11.85323582,84.366,84.35,1.20616343]
[1771579325976,3.64246369,84.39,84.361,1.00616343]
[1771579326185,0.98415666,84.389,84.361,1.00616343]
[1771579328181,0.98218594,84.387,84.361,1.00616343]
[1771579330276,0.98218594,84.385,84.361,1.00616343]
[1771579330688,11.85030692,84.386,84.35,0.2]
[1771579330689,0.98218594,84.379,84.355,0.9883895]
[1771579333687,11.85030692,84.386,84.35,3.84246369]
[1771579333688,0.98218594,84.377,84.35,12.05525386]
[1771579333897,0.98218594,84.377,84.351,0.9883895]
[1771579334568,11.85143046,84.378,84.352,0.9883895]
[1771579334774,11.8508045,84.383,84.352,0.9883895]
[1771579335586,12.83299044,84.383,84.352,0.9883895]
[1771579335890,0.98218594,84.382,84.354,0.9883895]
[1771579336090,0.98218594,84.379,84.354,0.9883895]
[1771579338093,0.98218594,84.388,84.356,0.9883895]
[1771579338296,11.84988564,84.389,84.356,0.9883895]
[1771579338675,0.98218594,84.388,84.356,0.9883895]
[1771579339077,0.98218594,84.409,84.371,0.9883895]
[1771579339288,0.98218594,84.399,84.371,0.9883895]
[1771579340094,0.98218594,84.397,84.36,3.64246369]
[1771579341074,0.98218594,84.397,84.354,11.85468084]
[1771579341275,0.98218594,84.379,84.35,0.2]
[1771579342000,0.98218594,84.379,84.351,0.9883895]
[1771579343601,0.98218594,84.379,84.353,0.9883895]
[1771579343794,0.98218594,84.377,84.353,0.9883895]
[1771579343994,0.98218594,84.377,84.354,0.9883895]
[1771579349000,3.64771427,84.39,84.35,0.2]
[1771579349001,0.98218594,84.369,84.35,0.2]
[1771579350999,11.85283519,84.368,84.35,0.2]
[1771579351193,0.98218594,84.367,84.35,0.2]
[1771579351692,4.62990021,84.36,84.35,0.2]
[1771579351913,0.98218594,84.36,84.35,0.2]
[1771579354676,0.98218594,84.375,84.35,0.2]
[1771579354881,0.98218594,84.369,84.35,1.18087499]
[1771579355088,0.98218594,84.374,84.35,1.18087499]
[1771579355506,3.64771427,84.37,84.35,1.18087499]
[1771579355884,4.62990021,84.37,84.35,1.18087499]
[1771579358002,1.03844349,84.369,84.35,1.18087499]
[1771579360613,11.85173243,84.376,84.35,1.18087499]
[1771579360794,11.85085877,84.383,84.352,0.99795808]
[1771579361309,1.03844349,84.379,84.351,11.855224]
[1771579361613,1.03844349,84.377,84.352,0.99795808]
[1771579361801,3.64771427,84.37,84.352,0.99795808]
[1771579362001,1.03844349,84.369,84.352,0.99795808]
[1771579362311,1.03844349,84.369,84.35,0.2]
[1771579363013,1.03844349,84.367,84.35,0.2]
[1771579364313,1.03844349,84.365,84.342,1.00258887]
[1771579366214,1.03844349,84.365,84.343,11.85634848]
[1771579366525,1.03844349,84.365,84.343,1.00933633]
[1771579366812,3.64771427,84.39,84.343,1.00933633]
[1771579366813,3.64771427,84.38,84.343,1.00933633]
[1771579367009,1.03844349,84.378,84.343,1.00933633]
[1771579367396,1.03844349,84.369,84.343,1.00933633]
[1771579367710,11.85129001,84.379,84.343,1.00933633]
[1771579368085,1.03844349,84.378,84.343,1.00933633]
[1771579368522,1.03844349,84.376,84.345,1.01370248]
[1771579368808,12.88934948,84.382,84.351,1.01584928]
[1771579370409,1.03844349,84.381,84.351,1.01584928]
[1771579372030,1.03844349,84.381,84.353,1.02214191]
[1771579372306,12.88959305,84.38,84.353,1.02214191]
[1771579372508,1.03844349,84.379,84.353,1.02214191]
[1771579373197,11.85044985,84.385,84.353,1.02214191]
[1771579373515,12.88889334,84.385,84.353,1.02214191]
[1771579374812,1.03844349,84.384,84.355,1.02825049]
[1771579376799,1.03844349,84.379,84.355,1.02825049]
[1771579377418,1.03844349,84.389,84.357,1.03220666]
[1771579378197,1.03844349,84.389,84.361,1.03414022]
[1771579378996,1.03844349,84.389,84.362,11.85367819]
[1771579379192,1.03844349,84.389,84.363,1.03605009]
[1771579379701,1.03844349,84.416,84.371,1.03793855]
[1771579380013,1.03844349,84.409,84.371,1.03793855]
[1771579380995,1.03844349,84.407,84.373,1.03982001]
[1771579382019,1.03844349,84.405,84.375,1.04166534]
[1771579384715,12.87661589,84.404,84.38,3.64771427]
[1771579384907,1.02883617,84.413,84.381,1.04883155]
[1771579385413,3.64771427,84.45,84.401,1.04883155]
[1771579385414,1.02883617,84.432,84.401,1.04883155]
[1771579385617,1.02883617,84.432,84.41,3.64771427]
[1771579385807,1.02883617,84.432,84.41,4.69828386]
[1771579386007,1.02883617,84.432,84.411,1.05056959]
[1771579386518,1.02883617,84.44,84.411,1.05056959]
[1771579386723,1.02883617,84.44,84.421,1.05056959]
[1771579391623,1.12582544,84.438,84.415,1.05201308]
[1771579392210,1.12582544,84.438,84.417,1.05201308]
[1771579395218,1.12582544,84.447,84.42,3.64771427]
[1771579395429,1.12582544,84.447,84.421,1.05201308]
[1771579395736,1.12582544,84.457,84.421,1.05201308]
[1771579395914,0.1,84.46,84.441,1.05201308]
[1771579396733,9.82311723,84.51,84.42,3.64771427]
[1771579396734,1.12582544,84.472,84.45,3.64771427]
[1771579396919,12.96308677,84.479,84.46,3.64771427]
[1771579397309,12.96308677,84.479,84.45,15.7540469]
[1771579397514,12.96308677,84.479,84.45,3.64771427]
[1771579398331,0.1,84.48,84.46,3.64771427]
[1771579398574,0.1,84.48,84.47,3.64771427]
[1771579399234,1.12582544,84.497,84.474,1.05201308]
[1771579399434,1.12582544,84.497,84.451,41.44415104]
[1771579399435,0.1,84.5,84.48,4.61796313]
[1771579399615,0.1,84.5,84.481,0.97024886]
[1771579400431,0.1,84.5,84.482,11.83684098]
[1771579400637,0.1,84.5,84.483,0.97141543]
[1771579401020,1.14016722,84.489,84.451,11.84118601]
[1771579401226,1.14016722,84.489,84.46,3.64771427]
[1771579402659,1.14016722,84.488,84.46,15.48750736]
[1771579403522,1.14016722,84.487,84.46,15.48750736]
[1771579403919,1.14016722,84.487,84.46,15.47713375]
[1771579405443,1.14016722,84.479,84.45,3.63734066]
[1771579405636,1.14016722,84.459,84.42,3.63734066]
[1771579405842,1.14016722,84.449,84.42,3.63734066]
[1771579407036,1.14016722,84.439,84.4,11.98499418]
[1771579407238,1.14016722,84.439,84.4,3.63734066]
[1771579407747,1.14016722,84.439,84.41,3.63734066]
[1771579408654,1.14016722,84.439,84.411,11.84679721]
[1771579409027,1.14016722,84.437,84.411,11.84679721]
[1771579411031,1.14016722,84.458,84.43,3.63734066]
[1771579411457,1.14016722,84.458,84.44,3.63734066]
[1771579412955,1.14016722,84.462,84.44,3.63734066]
[1771579413257,1.14016722,84.462,84.436,0.0225142]
[1771579413838,1.14016722,84.462,84.431,0.02415336]
[1771579414242,1.14016722,84.469,84.441,0.02415336]
[1771579414548,1.14016722,84.469,84.45,3.63734066]
[1771579414754,1.14016722,84.469,84.451,11.84118601]
[1771579415360,1.14016722,84.469,84.45,3.63734066]
[1771579415660,1.14016722,84.469,84.446,11.84182071]
[1771579417741,1.14016722,84.469,84.442,0.032155]
[1771579418863,11.83685747,84.482,84.46,3.63734066]
[1771579419047,1.14016722,84.484,84.461,0.03370069]
[1771579419243,1.14016722,84.484,84.46,3.63734066]
[1771579419660,1.14016722,84.484,84.462,0.03521758]
[1771579419857,1.14016722,84.482,84.45,3.63734066]
[1771579421265,11.83670087,84.483,84.44,3.67405477]
[1771579421266,1.14016722,84.479,84.44,3.67405477]
[1771579421640,1.14016722,84.479,84.45,3.63734066]
[1771579421844,1.14016722,84.477,84.45,3.63734066]
[1771579422041,1.14016722,84.477,84.44,0.03671411]
[1771579422346,1.14016722,84.477,84.45,3.63734066]
[1771579422773,1.14016722,84.477,84.441,11.84258831]
[1771579423269,1.14016722,84.469,84.44,3.63734066]
[1771579424068,1.14016722,84.469,84.437,11.88427422]
[1771579424640,1.14016722,84.469,84.438,0.04112489]
[1771579426866,1.14016722,84.468,84.44,3.63734066]
[1771579427066,1.14016722,84.468,84.438,0.04112489]
[1771579427366,1.14016722,84.468,84.431,0.04537139]
[1771579427562,1.14016722,84.468,84.441,0.04537139]
[1771579427768,0.1,84.5,84.448,0.0467566]
[1771579427769,1.14016722,84.475,84.448,0.0467566]
[1771579428064,1.14016722,84.469,84.44,3.63734066]
[1771579429080,1.14016722,84.469,84.442,0.04812565]
[1771579437986,11.83880286,84.468,84.442,0.04812565]
[1771579438186,1.14016722,84.467,84.442,0.04812565]
[1771579439181,1.14016722,84.467,84.441,11.84258831]
[1771579440387,1.14016722,84.467,84.442,0.06222565]
[1771579440606,3.63734066,84.46,84.431,11.90614039]
[1771579440897,1.14016722,84.459,84.431,11.90614039]
[1771579441969,1.14016722,84.459,84.432,0.06459662]
[1771579442498,1.14016722,84.457,84.432,0.06459662]
[1771579445898,3.63734066,84.47,84.441,0.07029489]
[1771579445899,1.14016722,84.47,84.441,0.07029489]
[1771579446803,1.14016722,84.47,84.435,0.07138514]
[1771579447102,1.14016722,84.469,84.44,3.63734066]
[1771579449410,1.14016722,84.467,84.436,0.07246344]
[1771579451025,1.14016722,84.467,84.431,0.07667939]
[1771579451615,1.14016722,84.465,84.431,11.92067034]
[1771579451931,1.14016722,84.439,84.411,0.07770542]
[1771579452227,1.14016722,84.449,84.421,0.07770542]
[1771579452812,1.14016722,84.449,84.42,3.63734066]
[1771579453212,1.14016722,84.449,84.415,0.07856729]
[1771579453823,1.14016722,84.448,84.415,0.07856729]
[1771579454620,1.14016722,84.439,84.403,11.84792009]
[1771579455921,1.14016722,84.429,84.403,11.84792009]
[1771579457731,1.14016722,84.429,84.404,0.08192043]
[1771579460021,1.14016722,84.429,84.403,11.84792009]
[1771579461237,3.63734066,84.43,84.403,11.84792009]
[1771579461238,1.14016722,84.427,84.403,11.84792009]
[1771579461434,1.14016722,84.427,84.391,0.08514859]
[1771579461628,11.8444118,84.428,84.39,3.63734066]
[1771579461629,1.14016722,84.419,84.39,3.63734066]
[1771579462036,1.14016722,84.419,84.391,11.84960481]
[1771579462419,11.84581487,84.418,84.391,11.84960481]
[1771579462629,1.14016722,84.417,84.392,0.08593464]
[1771579462837,1.14016722,84.417,84.391,11.84960481]
[1771579464941,1.14016722,84.409,84.381,11.85100911]
[1771579466042,1.14016722,84.408,84.381,11.85100911]
[1771579469444,1.14016722,84.407,84.381,11.85100911]
[1771579472331,1.14016722,84.407,84.378,0.09197773]
[1771579473056,1.14016722,84.405,84.372,0.0940818]
[1771579473948,1.14016722,84.405,84.371,11.85241374]
[1771579474340,11.84777972,84.404,84.371,11.94718595]
[1771579474529,1.14016722,84.403,84.371,11.94718595]
[1771579475033,1.14016722,84.399,84.371,11.85241374]
[1771579476654,1.14016722,84.397,84.371,11.85241374]
[1771579476955,1.14016722,84.397,84.363,11.85348906]
[1771579477456,1.14016722,84.397,84.363,11.95097434]
[1771579478045,1.1546723,84.395,84.363,11.95097434]
[1771579479957,1.1546723,84.389,84.363,11.85348906]
[1771579480264,1.1546723,84.389,84.361,11.8538187]
[1771579480461,1.1546723,84.389,84.351,11.8551207]
[1771579480761,1.1546723,84.379,84.35,0.2]
[1771579480962,1.1546723,84.369,84.35,0.2]
[1771579481465,1.1546723,84.369,84.333,0.10004655]
[1771579481942,1.1546723,84.359,84.333,0.10004655]
[1771579482143,1.1546723,84.357,84.331,11.85803559]
[1771579482640,1.1546723,84.357,84.328,0.10067327]
[1771579482860,1.1546723,84.357,84.33,0.2]
[1771579485442,1.1546723,84.355,84.33,0.2]
[1771579486476,1.1546723,84.353,84.33,0.30311189]
[1771579488468,11.85376046,84.362,84.332,0.10428297]
[1771579489056,1.1546723,84.361,84.332,0.10428297]
[1771579489857,1.1546723,84.372,84.341,0.10541813]
[1771579491259,1.1546723,84.369,84.341,0.10541813]
[1771579491445,1.1546723,84.369,84.332,0.10597862]
[1771579492066,1.1546723,84.367,84.332,0.10597862]
[1771579492596,1.1546723,84.367,84.341,0.10653901]
[1771579495688,1.1546723,84.367,84.342,0.10817441]
[1771579497299,1.1546723,84.38,84.351,0.10921544]
[1771579498274,1.1546723,84.378,84.34,3.64476498]
[1771579498481,1.1546723,84.378,84.333,0.10972474]
[1771579498482,1.1546723,84.369,84.334,11.85761377]
[1771579498698,1.1546723,84.369,84.335,0.10972474]
[1771579499996,1.1546723,84.378,84.341,0.11074205]
[1771579500388,1.1546723,84.376,84.342,0.11074205]
[1771579501898,1.1546723,84.376,84.33,0.2]
[1771579501899,1.1546723,84.359,84.33,0.2]
[1771579502603,1.1546723,84.357,84.33,0.2]
[1771579502992,1.1546723,84.349,84.33,0.2]
[1771579504999,1.1546723,84.349,84.32,0.2]
[1771579505000,1.14016722,84.339,84.32,0.2]
[1771579505210,1.14016722,84.335,84.32,0.2]
[1771579507594,4.8213161,84.34,84.32,0.2]
[1771579508293,1.17655112,84.339,84.32,0.2]
[1771579508706,11.85523108,84.351,84.322,0.11606604]
[1771579509089,1.17655112,84.35,84.322,0.11606604]
[1771579510006,1.17655112,84.348,84.32,0.2]
[1771579510195,1.17655112,84.348,84.32,12.05951447]
[1771579512606,1.17655112,84.346,84.32,12.05951447]
[1771579513210,1.17655112,84.346,84.32,12.17542797]
[1771579514616,1.17655112,84.346,84.321,0.11446293]
[1771579516305,1.17655112,84.346,84.32,12.05951447]
[1771579517817,1.17655112,84.344,84.32,0.2]
[1771579518012,1.17655112,84.344,84.321,0.10882944]
[1771579518397,11.85606734,84.345,84.32,15.70430478]
[1771579518398,1.17655112,84.342,84.32,0.2]
[1771579520899,1.17655112,84.339,84.32,0.2]
[1771579521606,1.17655112,84.339,84.31,0.2]
[1771579521807,1.17655112,84.329,84.3,0.2]
[1771579523021,1.17655112,84.329,84.3,12.06233801]
[1771579523223,1.17655112,84.329,84.3,15.70710299]
[1771579526022,1.17655112,84.329,84.3,15.71417072]
[1771579526233,1.17655112,84.327,84.301,11.86225548]
[1771579527622,1.17655112,84.347,84.321,0.09711444]
[1771579528402,1.17655112,84.347,84.321,11.95655633]
[1771579530606,1.17655112,84.329,84.301,11.86225548]
[1771579532822,29.63981694,84.346,84.31,3.65183271]
[1771579533026,29.63981694,84.346,84.311,0.08994919]
[1771579533027,1.17655112,84.344,84.311,0.08994919]
[1771579533215,1.17655112,84.339,84.31,3.65183271]
[1771579534947,1.17655112,84.339,84.301,41.5178942]
[1771579534948,1.17655112,84.349,84.32,3.65183271]
[1771579535229,1.17655112,84.348,84.32,3.65183271]
[1771579535410,1.17655112,84.348,84.319,0.08765464]
[1771579535730,1.17655112,84.339,84.307,11.86139172]
[1771579536409,1.17655112,84.339,84.31,3.65183271]
[1771579536632,3.65183271,84.37,84.331,1.17338146]
[1771579537338,3.65183271,84.37,84.3,3.85183271]
[1771579537339,3.65183271,84.37,84.341,1.11135349]
[1771579537505,3.65183271,84.38,84.341,1.11135349]
[1771579537825,3.65183271,84.35,84.312,1.11135349]
[1771579538007,3.65183271,84.34,84.311,11.86084852]
[1771579538522,1.09811599,84.339,84.311,11.86084852]
[1771579540625,1.09811599,84.339,84.3,33.50771739]
[1771579540626,1.09811599,84.339,84.305,12.97304615]
[1771579540929,1.09811599,84.339,84.306,1.11135349]
[1771579541238,1.09811599,84.339,84.32,4.7631862]
[1771579542005,1.09811599,84.348,84.321,1.11135349]
[1771579543412,1.09811599,84.348,84.313,1.11135349]
[1771579544308,1.09811599,84.346,84.313,1.11135349]
[1771579544627,1.09811599,84.346,84.314,12.97177999]
[1771579546125,1.09811599,84.346,84.315,1.11135349]
[1771579547915,11.85606734,84.345,84.315,1.11135349]
[1771579548116,1.09811599,84.344,84.315,1.11135349]
[1771579549621,1.09811599,84.344,84.3,33.50771739]
[1771579549622,1.09811599,84.329,84.3,0.2]
[1771579549932,1.09811599,84.336,84.31,3.65183271]
[1771579550118,1.09811599,84.342,84.321,1.11135349]
[1771579553336,1.09811599,84.342,84.3,3.85183271]
[1771579553337,1.09811599,84.359,84.331,1.11135349]
[1771579553841,1.09811599,84.359,84.323,1.11135349]
[1771579554535,1.09811599,84.358,84.324,11.85901997]
[1771579554725,1.09811599,84.358,84.324,12.97037346]
[1771579555437,1.09811599,84.358,84.325,1.11135349]
[1771579556942,1.09811599,84.349,84.315,11.86023414]
[1771579557243,1.09811599,84.349,84.321,1.11135349]
[1771579558021,1.09811599,84.356,84.321,1.11135349]
[1771579558544,1.09811599,84.355,84.331,1.11135349]
[1771579560763,1.09811599,84.354,84.321,1.11135349]
[1771579561222,3.65183271,84.35,84.321,1.11135349]
[1771579561422,1.09811599,84.349,84.321,1.11135349]
[1771579561649,1.09811599,84.349,84.324,1.11135349]
[1771579562234,1.09811599,84.339,84.311,1.11135349]
[1771579562956,1.09811599,84.329,84.3,0.2]
[1771579563443,1.09811599,84.329,84.3,1.31135349]
[1771579564550,1.09811599,84.329,84.301,11.86225548]
[1771579565341,1.15168626,84.336,84.311,1.12814366]
[1771579565544,1.15168626,84.343,84.321,1.12814366]
[1771579565953,1.15168626,84.341,84.321,1.12814366]
[1771579566641,1.15168626,84.339,84.315,1.12814366]
[1771579567960,1.15168626,84.339,84.317,1.15968554]
[1771579569151,1.15168626,84.339,84.312,1.15968554]
[1771579570360,3.65183271,84.36,84.321,1.15968554]
[1771579570531,1.0772682,84.358,84.331,1.15968554]
[1771579572449,1.0772682,84.365,84.341,1.15968554]
[1771579572657,1.0772682,84.363,84.335,1.15968554]
[1771579573765,1.0772682,84.359,84.335,1.15968554]
[1771579578659,1.0772682,84.359,84.336,1.15968554]
[1771579579060,1.0772682,84.367,84.341,1.15968554]
[1771579580360,1.0772682,84.372,84.341,1.15968554]
[1771579580555,11.85094258,84.382,84.361,1.15968554]
[1771579580864,1.0772682,84.386,84.36,3.65183271]
[1771579580865,1.0772682,84.386,84.363,1.15968554]
[1771579581045,1.0772682,84.391,84.363,1.15968554]
[1771579581746,12.92687301,84.391,84.363,1.15968554]
[1771579581947,1.0772682,84.39,84.363,1.15968554]
[1771579582142,1.0772682,84.389,84.363,1.15968554]
[1771579583159,1.0772682,84.396,84.37,3.65183271]
[1771579583346,1.0772682,84.399,84.371,1.15968554]
[1771579583549,12.92477996,84.406,84.381,1.15968554]
[1771579583754,1.0772682,84.406,84.381,1.15968554]
[1771579584061,3.65183271,84.41,84.381,1.15968554]
[1771579584062,12.92490755,84.405,84.381,1.15968554]
[1771579584260,1.0772682,84.404,84.371,1.15968554]
[1771579586044,1.0772682,84.402,84.373,1.15968554]
[1771579587179,1.0772682,84.402,84.381,1.15968554]
[1771579589869,1.0772682,84.402,84.382,11.85086866]
[1771579592367,1.0772682,84.402,84.382,13.0105542]
[1771579595473,1.0772682,84.402,84.383,1.15968554]
[1771579599180,1.0772682,84.402,84.382,11.85086866]